bitfinex-derivatives/quotes_ETHF0:USTF0_20250411
["timestamp","ask_amount","ask_price","bid_price","bid_amount"]
[1744379424615,1.27238,1572.6,1572.5,0.00644812]
[1744379424814,5.79668,1572.6,1572.5,0.00644812]
[1744379426421,97.12648,1572.6,1572.5,8.12e-06]
[1744379426619,102.55377578,1572.6,1572.5,8.12e-06]
[1744379426917,102.55377578,1572.6,1571.8,3.2078]
[1744379426918,100.82733,1572.6,1571.9,3.2078]
[1744379427123,88.122,1572.6,1572.1,4.48058]
[1744379427323,88.122,1572.6,1572.2,4.9333]
[1744379428027,88.122,1572.6,1572.2,9.1926]
[1744379428226,1.27257,1572.4,1572.2,9.1926]
[1744379428427,1.27263,1572.3,1572.2,4.9333]
[1744379428615,1.27297,1571.9,1571.7,11.6082]
[1744379428821,1.27297,1571.9,1571.8,4.81351039]
[1744379429320,1.28245803,1572.0,1571.8,9.81351039]
[1744379429525,0.00953803,1572.0,1571.7,11.6082]
[1744379429721,1.27296,1571.9,1571.7,11.6082]
[1744379429923,0.00953803,1572.0,1571.7,16.6082]
[1744379430128,1.27298,1571.9,1571.7,11.6082]
[1744379430519,0.00953803,1572.0,1571.7,11.6082]
[1744379430520,1.27303,1571.8,1571.7,11.6082]
[1744379430827,1.27298,1571.9,1571.7,11.6082]
[1744379431022,1.27303,1571.8,1571.7,4.1411]
[1744379431423,1.27338,1571.4,1571.2,7.1067]
[1744379431726,3.18259,1571.8,1571.2,3.8989]
[1744379431727,7.89549,1571.8,1571.2,3.8989]
[1744379431929,7.89549,1571.8,1571.3,4.9045]
[1744379432119,1.27336,1571.4,1571.3,4.9045]
[1744379432735,1.27336,1571.4,1571.3,9.9045]
[1744379432915,1.27336,1571.4,1571.3,4.9045]
[1744379433322,1.27336,1571.4,1571.3,9.9045]
[1744379433530,11.29021,1571.5,1571.0,7.3287]
[1744379433716,1.2736,1571.1,1571.0,4.1209]
[1744379434320,8.107,1571.1,1570.8,3.2078]
[1744379434524,1.27373,1571.0,1570.8,3.2078]
[1744379434832,1.27376,1570.9,1570.8,3.2078]
[1744379435325,1.27376,1570.9,1570.8,5.0]
[1744379435526,8.107,1571.1,1570.8,8.2078]
[1744379435723,8.107,1571.1,1570.8,3.2078]
[1744379435927,1.27368,1571.0,1570.8,3.2078]
[1744379436230,1.27368,1571.0,1570.9,4.7283]
[1744379436631,1.27368,1571.0,1570.9,9.7283]
[1744379436827,1.27364,1571.1,1570.9,9.7283]
[1744379437026,1.27368,1571.0,1570.9,4.7283]
[1744379437519,1.27368,1571.0,1570.9,9.7283]
[1744379437827,0.00953803,1571.2,1570.9,4.7283]
[1744379438225,1.27368,1571.0,1570.9,4.7283]
[1744379439430,9.38568,1571.0,1570.9,4.7283]
[1744379439826,1.27392,1570.7,1570.6,3.2078]
[1744379440820,1.27392,1570.7,1570.5,3.2078]
[1744379441020,8.112,1571.0,1570.5,3.2078]
[1744379441221,3.18441,1570.9,1570.6,4.7981]
[1744379441522,1.27392,1570.7,1570.6,4.7981]
[1744379442432,1.27392,1570.7,1570.4,4.1686]
[1744379442433,1.27409,1570.5,1570.4,4.1686]
[1744379442828,7.829,1570.6,1570.4,4.1686]
[1744379443032,1.27409,1570.5,1570.4,4.1686]
[1744379443430,1.27406,1570.6,1570.4,4.1686]
[1744379443827,1.27406,1570.6,1570.5,4.8694]
[1744379444022,1.27406,1570.6,1570.5,8.0772]
[1744379444224,1.27406,1570.6,1570.5,4.8694]
[1744379444526,1.27449,1570.0,1569.9,3.2078]
[1744379444722,1.27449,1570.0,1569.9,8.0772]
[1744379445127,0.00953803,1570.1,1569.9,9.8694]
[1744379445534,7.83,1570.5,1570.0,3.2078]
[1744379445738,1.27433,1570.2,1570.1,4.928]
[1744379446031,3.18543,1570.4,1570.1,4.928]
[1744379446332,7.83,1570.5,1570.1,4.928]
[1744379446531,1.27411,1570.5,1570.2,3.2078]
[1744379446838,1.27417,1570.4,1570.3,4.928]
[1744379448439,1.27433,1570.2,1570.1,0.00953802]
[1744379448637,9.10633,1570.2,1570.1,0.00953802]
[1744379449032,14.10633,1570.2,1570.1,0.00953802]
[1744379449327,102.37833,1570.2,1570.1,8.02e-06]
[1744379449528,107.96663,1570.2,1570.1,8.02e-06]
[1744379449725,107.96663,1570.2,1569.4,8.5004]
[1744379449726,1.2749,1569.5,1569.4,8.5004]
[1744379449928,1.27514,1569.2,1569.1,3.9048]
[1744379450133,1.2753,1569.0,1568.9,3.2078]
[1744379450331,1.27551,1568.8,1568.6,8.0089]
[1744379450532,1.27555,1568.7,1568.6,4.1041]
[1744379450936,0.00953803,1568.8,1568.7,1.27549]
[1744379451130,1.27508,1569.3,1568.7,11.68924]
[1744379451435,1.27522,1569.1,1568.9,3.2078]
[1744379451634,1.27522,1569.1,1569.0,5.2926]
[1744379452036,7.833,1569.4,1569.0,10.2926]
[1744379452237,9.10802,1569.4,1569.2,3.2078]
[1744379452542,1.28451803,1569.4,1569.3,5.7958]
[1744379452932,1.28451803,1569.4,1569.3,12.07086]
[1744379452933,0.00953803,1569.4,1569.3,12.07086]
[1744379453330,0.00953803,1569.4,1569.3,16.86876]
[1744379453533,9.10781,1569.7,1569.4,1.27494]
[1744379453731,9.10774,1569.7,1569.6,3.2078]
[1744379454031,9.10779,1569.7,1569.5,5.7958]
[1744379454231,1.27482,1569.6,1569.5,5.7958]
[1744379454530,1.27482,1569.6,1569.3,8.0057]
[1744379454735,1.27506,1569.3,1569.2,8.6434]
[1744379455432,1.27506,1569.3,1569.2,5.4356]
[1744379455632,7.84253803,1569.7,1569.2,10.4356]
[1744379455833,1.27502,1569.4,1569.2,5.4356]
[1744379456036,1.27502,1569.4,1569.3,3.2078]
[1744379456531,1.27506,1569.3,1569.2,5.4356]
[1744379456933,13.54793803,1569.7,1569.2,5.4356]
[1744379457133,1.27497,1569.5,1569.3,3.2078]
[1744379457340,1.27497,1569.5,1569.4,5.4356]
[1744379457528,13.54793803,1569.7,1569.3,3.2078]
[1744379457731,1.27522,1569.1,1569.0,5.40739567]
[1744379457937,1.27522,1569.1,1569.0,7.8469]
[1744379458139,1.27521,1569.2,1569.0,4.6391]
[1744379458534,1.27522,1569.1,1569.0,7.8469]
[1744379458937,1.27517,1569.2,1569.0,10.1481]
[1744379459139,1.27518,1569.2,1569.0,13.3559]
[1744379459441,9.11211,1569.3,1569.0,14.63118]
[1744379459632,1.27517,1569.2,1569.0,14.63118]
[1744379459836,1.27522,1569.1,1569.0,13.3559]
[1744379460036,7.837,1569.3,1569.0,13.3559]
[1744379460340,0.02974131,2210.1,1569.2,3.2078]
[1744379460341,0.00953803,1569.7,1569.2,3.2078]
[1744379460648,4.6856,1570.5,1569.7,3.18684]
[1744379460838,1.27438,1570.2,1570.1,3.2078]
[1744379461035,13.76941001,1570.5,1570.0,5.4322]
[1744379461036,1.27441,1570.1,1570.0,5.4322]
[1744379461234,1.27457,1569.9,1569.8,5.66e-06]
[1744379461642,1.27474,1569.7,1569.6,3.2078]
[1744379461840,1.27465,1569.8,1569.7,0.00953803]
[1744379462340,5.27043803,1570.0,1569.7,0.00953803]
[1744379462542,5.27043803,1570.0,1569.8,3.2078]
[1744379462736,1.28404803,1570.0,1569.8,3.2078]
[1744379462931,1.27457,1569.9,1569.8,3.2078]
[1744379463241,0.00953803,1570.0,1569.8,3.2078]
[1744379463443,1.28405803,1570.0,1569.8,3.2078]
[1744379463741,1.27457,1569.9,1569.8,3.2078]
[1744379463943,1.27465,1569.8,1569.7,0.00953803]
[1744379464448,1.27458,1569.9,1569.7,9.49201803]
[1744379464648,1.27457,1569.9,1569.8,5.7275]
[1744379464838,0.00953803,1570.0,1569.8,5.7275]
[1744379465239,0.00953803,1570.0,1569.9,3.2078]
[1744379465440,0.00953803,1570.0,1569.9,4.48237]
[1744379465641,1.28402803,1570.0,1569.9,5.7275]
[1744379465939,0.00953803,1570.0,1569.8,1.27462]
[1744379466141,0.00953803,1570.0,1569.7,7.73123803]
[1744379466337,1.27464,1569.9,1569.7,3.21733803]
[1744379466547,1.27465,1569.8,1569.7,0.00953803]
[1744379467043,0.00953803,1570.0,1569.7,8.21733803]
[1744379467251,0.00953803,1570.0,1569.9,3.2078]
[1744379467448,1.28403803,1570.0,1569.8,1.27458]
[1744379467645,3.84540001,1570.8,1569.9,4.04256655]
[1744379467845,1.27417,1570.4,1570.3,3.2078]
[1744379468155,1.27429,1570.3,1570.0,9.30377]
[1744379468342,1.27414,1570.5,1570.2,4.48206]
[1744379468544,7.837,1570.9,1570.4,3.2078]
[1744379468742,5.2813,1570.8,1570.4,3.2078]
[1744379469039,1.27396,1570.7,1570.5,0.84405377]
[1744379469244,1.28341803,1570.8,1570.5,1.28358803]
[1744379469551,0.00953803,1570.8,1570.6,0.83487571]
[1744379469745,0.00953803,1570.8,1570.7,1.27392]
[1744379469951,0.00953803,1570.8,1570.5,3.21733803]
[1744379470144,1.274,1570.6,1570.5,3.21733803]
[1744379470450,1.274,1570.6,1570.5,0.00953803]
[1744379470741,1.274,1570.6,1570.5,3.21733803]
[1744379470942,0.00953803,1570.8,1570.7,1.27392]
[1744379471142,0.00953803,1570.8,1570.7,4.48172]
[1744379471342,0.00953803,1570.8,1570.7,10.31664647]
[1744379471751,0.00953803,1570.8,1570.7,5.31664647]
[1744379471938,0.00953803,1570.8,1570.7,4.04272647]
[1744379472142,1.28337803,1570.8,1570.7,3.2078]
[1744379472441,1.27392,1570.7,1570.6,9.652]
[1744379472839,1.27392,1570.7,1570.6,4.7136]
[1744379473046,1.27398,1570.7,1570.5,0.00953803]
[1744379473250,1.27399,1570.7,1570.5,3.21733803]
[1744379473547,0.00953803,1570.8,1570.7,1.27392]
[1744379473747,10.77839,1571.5,1571.0,1.27365]
[1744379474045,1.27376,1570.9,1570.8,9.2078]
[1744379474248,1.27384,1570.8,1570.7,0.7671121]
[1744379474442,1.27384,1570.8,1570.6,3.2078]
[1744379474642,16.40953,1571.1,1570.6,4.48179]
[1744379474843,13.2255,1571.1,1570.6,6.39279]
[1744379475043,0.00953803,1571.0,1570.6,3.2078]
[1744379475238,0.00953803,1571.0,1570.9,1.27376]
[1744379475658,0.00953803,1571.0,1570.9,5.79396]
[1744379477448,0.00953803,1571.0,1570.9,10.79396]
[1744379478448,1.27334,1571.5,1571.3,1.27344]
[1744379478652,13.06809599,1572.2,1571.3,1.27344]
[1744379478653,12.78262445,1572.0,1571.6,3.18296]
[1744379478847,12.78262445,1572.0,1571.5,3.19599961]
[1744379478848,3.18241,1571.9,1571.5,0.01298961]
[1744379479153,3.18263,1571.8,1571.4,4.5294]
[1744379479454,1.27336,1571.4,1571.2,1.27348]
[1744379479651,1.27328,1571.5,1571.4,0.00953803]
[1744379479951,1.26029039,1571.5,1571.4,0.00953803]
[1744379480143,7.13459039,1571.5,1571.4,0.00953803]
[1744379480554,19.72659039,1571.5,1571.4,0.00953803]
[1744379480854,3.18364,1571.3,1570.8,4.4997]
[1744379481156,1.27384,1570.8,1570.7,3.2078]
[1744379481359,6.39222,1570.9,1570.5,3.2078]
[1744379481555,1.274,1570.6,1570.3,4.48197]
[1744379481850,1.28360803,1570.6,1570.3,4.49150803]
[1744379482050,1.27417,1570.4,1570.3,0.00953803]
[1744379483047,6.27417,1570.4,1570.3,0.00953803]
[1744379483243,9.48197,1570.4,1570.3,2e-08]
[1744379484546,96.4898,1570.4,1569.4,3.2078]
[1744379484849,96.4898,1570.4,1569.6,3.2078]
[1744379484850,3.2078,1570.2,1569.6,3.2078]
[1744379485055,1.27461,1569.9,1569.4,3.2078]
[1744379485257,1.27466,1569.8,1569.4,3.2078]
[1744379485443,5.9289,1569.8,1569.5,1.27489]
[1744379485646,5.9289,1569.8,1569.4,3.2078]
[1744379485848,5.93843803,1569.8,1569.6,3.2078]
[1744379486051,0.00953803,1569.8,1569.7,5.9276]
[1744379486455,1.28418803,1569.8,1569.7,5.9276]
[1744379486647,1.28418803,1569.8,1569.5,0.00953803]
[1744379486648,7.21312803,1569.8,1569.5,0.00953803]
[1744379486852,7.21312803,1569.8,1569.6,3.2078]
[1744379487053,0.00953803,1569.8,1569.7,7.20234]
[1744379487253,0.00953803,1569.8,1569.7,5.9276]
[1744379487450,0.00953803,1569.8,1569.7,7.20234]
[1744379487652,1.28418803,1569.8,1569.7,5.9276]
[1744379487860,0.00953803,1569.8,1569.7,5.9276]
[1744379488157,1.28418803,1569.8,1569.6,3.2078]
[1744379488357,1.28423803,1569.8,1569.6,8.9874]
[1744379488561,1.28423803,1569.8,1569.6,5.7796]
[1744379488562,1.27474,1569.7,1569.6,5.7796]
[1744379488961,0.00953803,1569.8,1569.6,5.7796]
[1744379489260,0.00953803,1569.8,1569.6,8.9874]
[1744379489760,0.00953803,1569.8,1569.7,5.7796]
[1744379489957,3.21733803,1569.8,1569.5,0.00953803]
[1744379490259,1.27482,1569.6,1569.5,0.00953803]
[1744379491364,5.68183803,1569.8,1569.5,3.21733803]
[1744379491561,0.00953803,1569.8,1569.7,3.2078]
[1744379492054,0.00953803,1569.8,1569.6,10.689]
[1744379492055,1.27474,1569.7,1569.6,10.689]
[1744379492256,0.00953803,1569.8,1569.6,4.9811]
[1744379492452,0.00953803,1569.8,1569.7,3.2078]
[1744379492760,0.00953803,1569.8,1569.5,0.00953803]
[1744379492761,1.27482,1569.6,1569.5,0.00953803]
[1744379493556,8.81768803,1569.8,1569.5,0.00953803]
[1744379493753,1.27482,1569.6,1569.5,0.00953803]
[1744379494456,1.27476,1569.7,1569.6,1.2748]
[1744379494657,0.00953803,1569.8,1569.6,3.2078]
[1744379494962,0.00953803,1569.8,1569.7,1.27474]
[1744379495152,0.00953803,1569.8,1569.7,6.17474]
[1744379495357,1.28418803,1569.8,1569.7,4.9]
[1744379495957,1.27474,1569.7,1569.6,3.2078]
[1744379496357,1.27482,1569.6,1569.5,3.21733803]
[1744379496557,0.00953803,1569.8,1569.7,1.27474]
[1744379496765,0.00953803,1569.8,1569.7,4.48254]
[1744379497070,1.28418803,1569.8,1569.7,8.2078]
[1744379497263,1.27474,1569.7,1569.6,4.9]
[1744379497865,1.27482,1569.6,1569.5,3.21733803]
[1744379498052,1.27482,1569.6,1569.5,0.00953803]
[1744379498459,1.27482,1569.6,1569.5,3.21733803]
[1744379499061,1.27482,1569.6,1569.5,0.00953803]
[1744379499365,0.00953803,1569.8,1569.5,0.00953803]
[1744379499667,1.27482,1569.6,1569.5,0.00953803]
[1744379500061,0.00953803,1569.8,1569.5,0.00953803]
[1744379500368,1.27482,1569.6,1569.5,0.00953803]
[1744379503060,5.6311,1569.7,1569.5,0.00953803]
[1744379503263,1.27475,1569.7,1569.5,1.28438803]
[1744379503660,1.27482,1569.6,1569.5,0.00953803]
[1744379503861,14.00016803,1569.8,1569.5,1.28441803]
[1744379503862,6.71939,1569.7,1569.5,1.28441803]
[1744379504057,7.60553803,1569.8,1569.7,1.27474]
[1744379504258,8.88022803,1569.8,1569.5,3.21733803]
[1744379504465,1.27476,1569.7,1569.5,1.28438803]
[1744379504665,1.27476,1569.7,1569.5,4.49218803]
[1744379504866,7.60553803,1569.8,1569.5,3.21733803]
[1744379505072,8.88025803,1569.8,1569.6,1.27477]
[1744379505371,0.00953803,1569.8,1569.7,4.48254]
[1744379505566,0.00953803,1569.8,1569.7,9.21994]
[1744379505763,0.00953803,1569.8,1569.7,14.21994]
[1744379506273,0.00953803,1569.8,1569.7,9.21994]
[1744379506570,0.00953803,1569.8,1569.7,14.21994]
[1744379508070,4.93014799,1570.3,1570.2,1.27433]
[1744379508572,4.93014799,1570.3,1570.2,6.27433]
[1744379508776,4.93014799,1570.3,1570.2,12.03663]
[1744379509275,4.93014799,1570.3,1570.2,7.8726987]
[1744379509477,11.95827002,1570.4,1570.3,1.27425]
[1744379509673,11.95827002,1570.4,1570.3,5.31949742]
[1744379509871,11.95827002,1570.4,1570.3,11.08780366]
[1744379510374,11.95827002,1570.4,1570.3,11.61297045]
[1744379510879,4.56304803,1570.4,1570.3,11.61297045]
[1744379511078,4.56304803,1570.4,1570.3,11.08830066]
[1744379511376,1.27425,1570.3,1570.2,5.7623]
[1744379512072,10.8392,1570.3,1570.0,3.2078]
[1744379512277,1.27441,1570.1,1570.0,5.8317]
[1744379513078,1.27459,1569.9,1569.7,1.27468]
[1744379513268,6.0059,1570.0,1569.8,5.6275]
[1744379513468,6.0059,1570.2,1569.9,3.2078]
[1744379513676,4.56304803,1570.4,1570.3,1.27425]
[1744379513873,4.56304803,1570.4,1570.3,4.48205]
[1744379514075,4.56304803,1570.4,1570.3,10.25277732]
[1744379514281,4.56304803,1570.4,1570.3,11.61599691]
[1744379514883,7.39522199,1570.7,1570.3,11.61599691]
[1744379514884,0.223482,1570.7,1570.6,1.274]
[1744379515073,8.20154799,1570.9,1570.8,1.27384]
[1744379515277,8.20154799,1570.9,1570.8,4.48164]
[1744379515687,8.20154799,1570.9,1570.8,5.25236732]
[1744379516086,8.20154799,1570.9,1570.8,4.48164]
[1744379517788,8.20154799,1570.9,1570.8,1.27384]
[1744379517987,8.20154799,1570.9,1570.8,4.48164]
[1744379518387,8.20154799,1570.9,1570.8,14.34454]
[1744379519087,0.00635875,1571.0,1570.9,1.27376]
[1744379519381,0.00635875,1571.0,1570.9,6.74216]
[1744379519781,8.75e-06,1571.0,1570.9,11.74216]
[1744379519982,8.75e-06,1571.0,1570.9,6.74216]
[1744379520490,8.75e-06,1571.0,1570.9,11.74216]
[1744379520988,8.75e-06,1571.0,1570.9,12.57468732]
[1744379521188,7.29723,1572.0,1571.4,3.18336]
[1744379521391,1.27306,1571.8,1571.6,4.48097]
[1744379521590,7.28423039,1572.0,1571.8,1.27303]
[1744379521891,1.27304,1571.8,1571.6,4.48094]
[1744379522087,3.18247,1571.9,1571.4,3.2078]
[1744379522291,1.27327,1571.6,1571.5,0.00953803]
[1744379522683,6.27327,1571.6,1571.5,0.00953803]
[1744379523089,5.0516,1571.7,1571.5,1.28279803]
[1744379523393,1.27319,1571.6,1571.5,0.00953803]
[1744379523597,4.48099,1571.6,1571.5,0.00953803]
[1744379523897,9.48099,1571.6,1571.5,0.00953803]
[1744379524086,1.27368,1571.1,1570.8,4.48162]
[1744379524288,7.321,1571.3,1570.6,8.8642]
[1744379524584,6.39134,1571.4,1570.5,12.99212924]
[1744379524585,5.0227,1571.4,1570.8,3.2078]
[1744379524791,1.27362,1571.1,1570.9,7.15634]
[1744379525093,1.27366,1571.1,1570.8,3.2078]
[1744379525280,5.532,1571.0,1570.8,4.49113803]
[1744379525486,5.532,1571.0,1570.9,1.27376]
[1744379525696,5.532,1571.0,1570.9,5.8826]
[1744379525993,5.532,1571.0,1570.8,3.21733803]
[1744379526390,0.00953802,1571.2,1571.1,1.2736]
[1744379526691,0.00953802,1571.2,1571.1,4.4814]
[1744379527395,0.00953802,1571.2,1571.1,9.4814]
[1744379527584,0.00953802,1571.2,1571.1,4.4814]
[1744379527784,0.00953802,1571.2,1571.1,16.8014]
[1744379527990,8.02e-06,1571.2,1571.1,16.8014]
[1744379528183,4.8382,1572.2,1571.2,6.36753]
[1744379528490,19.3908463,1572.1,1571.9,1.27295]
[1744379528694,12.19634591,1572.1,1572.0,10.45337]
[1744379529386,12.19634591,1572.1,1571.9,0.00953803]
[1744379529583,1.27287,1572.0,1571.9,0.00953803]
[1744379529785,6.11107,1572.0,1571.9,0.00953803]
[1744379530089,1.27326,1571.6,1571.4,4.48111]
[1744379530297,1.27328,1571.5,1571.4,3.2078]
[1744379530796,6.27328,1571.5,1571.4,3.2078]
[1744379530984,1.27326,1571.6,1571.4,4.48115]
[1744379531184,1.27328,1571.5,1571.4,3.2078]
[1744379531590,5.6376,1571.5,1571.4,4.48116]
[1744379532094,10.6376,1571.5,1571.3,0.00953803]
[1744379532398,0.00953803,1571.6,1571.3,1.28291803]
[1744379532591,5.6376,1571.4,1571.3,1.28291803]
[1744379532785,0.00953803,1571.6,1571.4,1.2733]
[1744379532985,1.27311,1571.7,1571.6,0.00345158]
[1744379533190,5.6376,1571.9,1571.6,3.21125158]
[1744379533395,6.90712842,1571.9,1571.7,1.27311]
[1744379533584,5.63414842,1571.9,1571.7,1.27311]
[1744379534187,4.8382,1572.0,1571.9,1.27295]
[1744379534499,1.27268,1572.3,1572.0,1.27283]
[1744379534697,1.27268,1572.3,1571.9,3.2078]
[1744379535199,1.27263,1572.3,1572.1,1.27275]
[1744379535395,6.14199,1572.4,1572.1,1.27275]
[1744379535594,6.14199,1572.4,1572.2,1.27271]
[1744379535801,4.8694,1572.4,1572.2,1.27271]
[1744379536101,11.14197,1572.4,1572.1,4.49004803]
[1744379536289,6.14201,1572.4,1572.1,3.21733803]
[1744379536489,6.142,1572.4,1572.1,4.49011803]
[1744379536695,1.27271,1572.2,1572.1,3.21733803]
[1744379536894,1.27271,1572.2,1572.1,3.20434842]
[1744379537201,10.615,1572.3,1572.1,4.47706842]
[1744379537501,10.60201039,1572.3,1572.1,3.20434842]
[1744379537797,11.87466039,1572.3,1572.1,3.20434842]
[1744379538000,11.87466039,1572.3,1572.1,4.47707842]
[1744379538405,10.60201039,1572.3,1572.1,9.13544842]
[1744379538602,10.60201039,1572.3,1572.2,1.27271]
[1744379538799,5.55641039,1572.3,1572.2,1.27271]
[1744379539604,0.00953803,1572.4,1572.3,1.27263]
[1744379539996,0.00953803,1572.4,1572.3,4.48043]
[1744379540196,1e-08,1572.4,1572.3,9.48043]
[1744379540901,1e-08,1572.4,1572.3,10.24475343]
[1744379541601,1e-08,1572.4,1572.3,9.48043]
[1744379541991,1e-08,1572.4,1572.3,4.48043]
[1744379542594,1e-08,1572.4,1572.3,9.48043]
[1744379543195,1e-08,1572.4,1572.3,10.3108657]
[1744379543395,1e-08,1572.4,1572.3,11.07518913]
[1744379544097,1e-08,1572.4,1572.3,11.07543676]
[1744379544298,1e-08,1572.4,1572.3,11.59558259]
[1744379544494,1e-08,1572.4,1572.3,11.07543676]
[1744379545204,1e-08,1572.4,1572.3,11.59558259]
[1744379545896,1e-08,1572.4,1572.3,11.59479477]
[1744379547604,1e-08,1572.4,1572.3,11.59401]
[1744379548302,1e-08,1572.4,1572.3,6.59401]
[1744379548506,1e-08,1572.4,1572.3,11.07446903]
[1744379549207,1e-08,1572.4,1572.3,6.07446903]
[1744379549708,1e-08,1572.4,1572.3,6.59423134]
[1744379550099,1e-08,1572.4,1572.3,11.59423134]
[1744379551204,1e-08,1572.4,1572.3,22.14423134]
[1744379552914,1e-08,1572.4,1572.3,6.59423134]
[1744379553111,1e-08,1572.4,1572.3,22.14423134]
[1744379553416,1e-08,1572.4,1572.3,22.14360906]
[1744379553804,1e-08,1572.4,1572.3,17.14360906]
[1744379554503,1e-08,1572.4,1572.3,6.59360906]
[1744379554701,1e-08,1572.4,1572.3,6.07422135]
[1744379555101,1e-08,1572.4,1572.3,6.0750706]
[1744379555614,1e-08,1572.4,1572.3,11.07607165]
[1744379555910,1e-08,1572.4,1572.3,22.14661274]
[1744379556511,1e-08,1572.4,1572.3,6.59661274]
[1744379556702,1e-08,1572.4,1572.3,11.59661274]
[1744379556908,1e-08,1572.4,1572.3,11.59666045]
[1744379557109,1.27184,1573.3,1573.2,1.2719]
[1744379557409,5.5287,1573.3,1573.2,1.28870401]
[1744379557609,11.80052,1573.3,1573.2,0.01680401]
[1744379558204,11.80052,1573.3,1573.2,1.28870401]
[1744379558406,11.80052,1573.3,1573.2,0.01680401]
[1744379558613,10.5287,1573.3,1573.2,1.28870401]
[1744379559613,11.80052,1573.3,1573.2,1.28870401]
[1744379559914,11.80052,1573.3,1573.2,0.01680401]
[1744379560315,10.5287,1573.3,1573.2,1.28870401]
[1744379560510,11.80052,1573.3,1573.2,1.28870401]
[1744379560712,10.5287,1573.3,1573.2,1.28870401]
[1744379561313,4.781,1573.7,1573.6,1.27158]
[1744379561505,9.781,1573.7,1573.6,1.28838401]
[1744379561934,11.0525,1573.7,1573.6,0.01680401]
[1744379563018,9.781,1573.7,1573.6,1.28838401]
[1744379563210,9.781,1573.7,1573.6,0.01680401]
[1744379563211,11.0525,1573.7,1573.6,0.01680401]
[1744379563710,9.781,1573.7,1573.6,1.28838401]
[1744379563914,9.781,1573.7,1573.6,4.49618401]
[1744379564818,5.9993,1573.8,1573.7,1.2715]
[1744379565018,5.9993,1573.8,1573.7,2.86767824]
[1744379565218,5.9993,1573.8,1573.7,2.88448225]
[1744379565426,5.9993,1573.8,1573.7,2.05258855]
[1744379565717,5.9993,1573.8,1573.7,2.88428241]
[1744379566123,10.757,1573.9,1573.8,1.27141]
[1744379566424,10.757,1573.9,1573.8,4.47921]
[1744379566624,10.757,1573.9,1573.8,5.26029855]
[1744379566830,10.757,1573.9,1573.8,6.0919958]
[1744379567028,5.5765,1573.9,1573.8,6.61282569]
[1744379567215,5.5838,1574.3,1574.2,1.27109]
[1744379567216,4.9634,1574.3,1574.2,1.27109]
[1744379567522,1.27087,1574.5,1574.4,1.27088]
[1744379567720,9.7476,1574.7,1574.6,1.27077]
[1744379567918,9.7476,1574.7,1574.6,4.49537401]
[1744379568223,16.01829,1574.7,1574.6,0.01680401]
[1744379568428,21.0865,1574.7,1574.6,1.28757401]
[1744379568728,22.35719,1574.7,1574.6,1.28757401]
[1744379568928,22.35719,1574.7,1574.6,0.01680401]
[1744379569627,21.0865,1574.7,1574.6,4.49537401]
[1744379570324,22.35719,1574.7,1574.6,3.22460401]
[1744379570525,22.35719,1574.7,1574.6,0.01680401]
[1744379571827,25.56499,1574.7,1574.6,0.01680401]
[1744379572024,1.27104,1574.3,1574.1,4.48847803]
[1744379572231,7.46709,1574.2,1574.1,3.21733803]
[1744379572430,12.48549,1574.2,1574.1,0.00953803]
[1744379572627,17.48549,1574.2,1574.1,0.00953803]
[1744379573231,18.12149,1574.2,1574.1,0.00953803]
[1744379573427,21.2585,1574.2,1574.1,0.00953803]
[1744379573623,22.52959,1574.2,1574.1,0.00953803]
[1744379574430,1.2714,1573.9,1573.6,4.47935]
[1744379574732,6.3204,1573.8,1573.7,1.2715]
[1744379575733,6.3204,1573.8,1573.7,7.077]
[1744379576436,7.59188,1573.8,1573.6,4.48886803]
[1744379576626,7.59188,1573.8,1573.7,1.2715]
[1744379576827,6.3204,1573.8,1573.7,1.2715]
[1744379577028,6.3204,1573.8,1573.7,7.5682]
[1744379577228,1.2715,1573.7,1573.6,3.21733803]
[1744379577428,7.59186,1573.8,1573.6,4.48884803]
[1744379577636,7.59186,1573.8,1573.7,1.2715]
[1744379577836,6.3204,1573.8,1573.7,1.2715]
[1744379578036,7.59181,1573.8,1573.6,4.48886803]
[1744379578238,1.2715,1573.7,1573.6,3.21733803]
[1744379578537,7.1548,1573.7,1573.6,0.00953803]
[1744379578730,17.3149,1573.7,1573.6,0.00953803]
[1744379578927,6.3579,1573.6,1572.9,3.96969694]
[1744379579136,1.27206,1573.0,1572.9,0.76189694]
[1744379579324,1.28886401,1573.0,1572.9,0.76189694]
[1744379579527,0.01680401,1573.0,1572.9,0.76189694]
[1744379579727,7.59588401,1573.0,1572.8,4.47997]
[1744379579937,6.32380401,1573.0,1572.6,27.00446924]
[1744379580124,0.01680401,1572.8,1572.7,0.00953803]
[1744379580323,0.01680401,1572.8,1572.7,4.48963803]
[1744379580528,0.00953803,1573.1,1573.0,1.27206]
[1744379580738,0.00953803,1573.1,1573.0,4.47986]
[1744379580930,0.00953803,1573.1,1573.0,3.2078]
[1744379581339,0.00953803,1573.1,1573.0,4.47986]
[1744379581533,0.00953803,1573.1,1573.0,9.1272]
[1744379581832,0.00953803,1573.1,1573.0,10.39926]
[1744379582028,0.00953803,1573.1,1573.0,16.16261382]
[1744379582935,0.00953803,1573.1,1573.0,11.16261382]
[1744379583243,0.00953803,1573.1,1573.0,9.1272]
[1744379583244,1.28151803,1573.1,1573.0,9.1272]
[1744379583439,0.00953803,1573.1,1573.0,3.2078]
[1744379583733,1.27213,1573.0,1572.8,17.57316]
[1744379583933,1.27214,1572.9,1572.8,16.301]
[1744379584238,1.27214,1572.9,1572.8,3.2078]
[1744379584835,6.00643803,1573.1,1572.8,3.2078]
[1744379585132,1.27222,1572.8,1572.7,0.00953803]
[1744379586540,6.27222,1572.8,1572.7,0.00953803]
[1744379586737,9.48002,1572.8,1572.7,0.00953803]
[1744379586941,6.27222,1572.8,1572.7,1e-08]
[1744379587328,1.27279,1572.1,1572.0,24.62276238]
[1744379587529,4.48059,1572.1,1572.0,24.60977277]
[1744379587729,3.2078,1572.3,1572.0,24.60977277]
[1744379588041,5.207,1572.6,1572.1,1.27276]